lending/lending_fUSD_20250131
["ID","MTS","AMOUNT","RATE_DAILY","PERIOD"]
[351153484,1738362632279,-379.27,0.00016551,2]
[351153486,1738362632288,-378.65,0.00016551,2]
[351153488,1738362632297,-381.57,0.00016551,2]
[351153490,1738362632306,-370.26,0.00016551,2]
[351153492,1738362632315,-500.0,0.00016551,2]
[351153493,1738362632324,-500.0,0.00016607,2]
[351153494,1738362632334,-369.39,0.00016607,2]
[351153496,1738362632343,-774.29,0.00016641,2]
[351153498,1738362632352,-772.03,0.00016641,2]
[351153500,1738362632363,-157.03,0.00016658,30]
[351153502,1738362632372,-385.0,0.00016731,2]
[351153504,1738362632381,-774.29,0.00016741,2]
[351153506,1738362632389,-174.08918417,0.0001682,2]
[351153508,1738362632398,-118046.76632479,0.0001688,2]
[351153510,1738362632408,-375.51,0.0001692,2]
[351153512,1738362632417,-374.45,0.0001692,2]
[351153514,1738362632425,-367.69,0.00016921,2]
[351153516,1738362632434,-374.41,0.00016921,2]
[351153517,1738362632443,-369.79,0.00016921,2]
[351153518,1738362632453,-370.56,0.00016921,2]
[351153519,1738362632462,-369.74,0.00016921,2]
[351153520,1738362632471,-376.04,0.00016921,2]
[351153521,1738362632481,-377.81,0.00016921,2]
[351153522,1738362632489,-373.89,0.00016921,2]
[351153523,1738362632498,-374.66,0.00016921,2]
[351153524,1738362632507,-372.02,0.00016921,2]
[351153525,1738362632517,-381.94,0.00016922,2]
[351153526,1738362632526,-372.23,0.00016922,2]
[351153527,1738362632536,-373.46,0.00016922,2]
[351153528,1738362632546,-379.32,0.00016922,2]
[351153529,1738362632556,-380.75,0.00016922,2]
[351153531,1738362632567,-382.1,0.00016922,2]
[351153532,1738362632576,-379.67,0.00016922,2]
[351153534,1738362632586,-381.47,0.00016922,2]
[351153535,1738362632595,-369.35,0.00016922,2]
[351153537,1738362632604,-900.0,0.00016922,2]
[351153539,1738362632615,-500.0,0.00016922,2]
[351153540,1738362632624,-774.29,0.00016941,2]
[351153542,1738362632633,-150.0,0.00017203,2]
[351153544,1738362632643,-395.96963018,0.00017236,2]
[351153546,1738362632652,-200.0,0.00017244,2]
[351153548,1738362632661,-1000.0,0.00017251,2]
[351153550,1738362632670,-81617.96992117,0.000173,2]
[351153551,1738362632679,-20356.00843621,0.0001736,2]
[351153552,1738362632689,-379.02,0.000174,2]
[351153553,1738362632699,-382.41,0.000174,2]
[351153554,1738362632708,-1444.68460131,0.000175,2]
[351153555,1738362632717,-992.51730511,0.00017517,2]
[351153556,1738362632726,-200.0,0.00017532,2]
[351153557,1738362632735,-3000.0,0.00017532,2]
[351153558,1738362632745,-34817.82022173,0.00017532,2]
[351153559,1738362632755,-286510.1421311,0.00017537,2]
[351153560,1738362632765,-186595.67973157,0.00017543,2]
[351153561,1738362632778,-1187.2089524,0.00017543,2]
[351153562,1738362632798,-1472.99276287,0.00017543,2]
[351153563,1738362632809,-49657.95822333,0.00017543,2]
[351153564,1738362632820,-1184.29837554,0.00017543,2]
[351153565,1738362632831,-3230.8157303,0.00017543,2]
[351153566,1738362632844,-6018.81893899,0.00017543,2]
[351153567,1738362632864,-17417.96625061,0.00017543,2]
[351153568,1738362632876,-17170.5,0.00017543,2]
[351153569,1738362632887,-1914.75277448,0.00017543,2]
[351153570,1738362633010,-659.15039101,0.00017543,2]
[351153571,1738362633019,-1894.70965928,0.00017549,2]
[351153572,1738362633029,-2156.73133262,0.00017556,2]
[351153573,1738362633041,-6955.77644504,0.00017556,2]
[351153574,1738362633051,-3612.96141956,0.00017557,2]
[351153575,1738362633062,-1533.93960296,0.00017557,2]
[351153576,1738362633073,-992.51730511,0.00017559,2]
[351153577,1738362633082,-9112.50777766,0.00017562,2]
[351153578,1738362633092,-286510.1421311,0.00017566,2]
[351153579,1738362633102,-992.51730511,0.00017575,2]
[351153580,1738362633112,-1894.70965928,0.00017589,2]
[351153581,1738362633122,-992.51730511,0.00017597,2]
[351153582,1738362633131,-5146.90102252,0.00017598,2]
[351153583,1738362633141,-576.92916187,0.000177,2]
[351153584,1738362633150,-200.0,0.00017707,2]
[351153585,1738362633159,-1000.0,0.0001779,2]
[351153586,1738362633169,-500.0,0.000178,7]
[351153587,1738362633178,-500.0,0.000178,7]
[351153588,1738362633187,-500.0,0.000178,7]
[351153589,1738362633196,-438.23,0.000178,7]
[351153590,1738362633205,-2144.15,0.000178,2]
[351153591,1738362633214,-576.92916187,0.0001782,2]
[351153592,1738362633223,-167.497,0.0001783,2]
[351153593,1738362633232,-3073.69,0.0001783,2]
[351153594,1738362633242,-500.0,0.00017877,7]
[351153595,1738362633251,-500.0,0.00017877,7]
[351153596,1738362633260,-500.0,0.00017877,7]
[351153597,1738362633269,-500.0,0.00017877,7]
[351153598,1738362633278,-500.0,0.00017877,7]
[351153599,1738362633287,-500.0,0.00017877,7]
[351153600,1738362633297,-500.0,0.00017877,7]
[351153601,1738362633306,-500.0,0.00017877,7]
[351153602,1738362633315,-500.0,0.00017877,7]
[351153603,1738362633324,-500.0,0.00017877,7]
[351153604,1738362633333,-389.6,0.00017877,7]
[351153605,1738362633342,-5000.0,0.000179,2]
[351153606,1738362633352,-919.30071294,0.00017918,2]
[351153607,1738362633361,-561.67464272,0.00017918,2]
[351153608,1738362633370,-576.92916187,0.0001794,2]
[351153609,1738362633380,-500.0,0.00017973,2]
[351153610,1738362633389,-500.0,0.00017973,2]
[351153611,1738362633398,-454.33985844,0.0001799,2]
[351153612,1738362633408,-1000.0,0.00017999,2]
[351153613,1738362633417,-1000.0,0.00017999,2]
[351153614,1738362633426,-500.0,0.00017999,2]
[351153615,1738362633435,-500.0,0.00017999,2]
[351153616,1738362633445,-501.05505135,0.00017999,2]
[351153617,1738362633454,-500.0,0.00017999,2]
[351153618,1738362633462,-500.0,0.00017999,2]
[351153619,1738362633471,-500.0,0.00017999,2]
[351153620,1738362633481,-500.0,0.00017999,2]
[351153621,1738362633490,-280.38808493,0.00017999,2]
[351153622,1738362633498,-500.0,0.00017999,2]
[351153623,1738362633507,-157.99646414,0.00017999,2]
[351153624,1738362633678,-427.72909319,0.00017999,2]
[351153625,1738362633687,-436.62713417,0.00017999,2]
[351153626,1738362633697,-2427.0,0.00018,2]
[351153627,1738362633706,-37858.23940374,0.00018,2]
[351153737,1738362639873,-346.31987535,0.000144,2]
[351153738,1738362640133,-184.07295768,0.000144,2]
[351153739,1738362640142,-530.39283303,0.000144,2]
[351153740,1738362640151,-530.39283303,0.000144,2]
[351153741,1738362640161,-530.39283303,0.000144,2]
[351153742,1738362640171,-213.49854322,0.000144,2]
[351153754,1738362642971,-316.89428981,0.000144,2]
[351153755,1738362642980,-530.39283303,0.000144,2]
[351153756,1738362642990,-530.39283303,0.000144,2]
[351153757,1738362643003,-530.39283303,0.000144,2]
[351153758,1738362643013,-530.39283303,0.00014693,2]
[351153759,1738362643023,-530.39283303,0.00015072,2]
[351153760,1738362643032,-530.39283303,0.00015452,2]
[351153761,1738362643042,-530.39283303,0.00015831,2]
[351153762,1738362643051,-530.39283303,0.0001621,2]
[351153763,1738362643061,-530.39283303,0.0001659,2]
[351153764,1738362643070,-530.39283303,0.00016969,2]
[351153765,1738362643079,-5000.0,0.000172,2]
[351153776,1738362643247,-530.39283303,0.00017348,2]
[351153777,1738362643256,-530.39283303,0.00017728,2]
[351153778,1738362643265,-2178.0,0.00018,2]
[351153779,1738362643275,-216310.39171383,0.00018,2]
[351153785,1738362645847,-1627.66611083,0.00018,2]
[351153786,1738362646086,-8271.7555506,0.00018,2]
[351153789,1738363399127,-338.01,0.00010137,2]
[351153790,1738363500325,4500.0,0.0002101,120]
[351153792,1738363593014,1329.0,0.0001811,60]
[351153810,1738363832170,-150.0,0.00011151,2]
[351153811,1738363832181,-184.4,0.00013699,2]
[351153812,1738363832190,-150.0,0.0001411,2]
[351153813,1738363832199,-250.0,0.00014734,2]
[351153814,1738363832209,-858.3,0.00015117,2]
[351153815,1738363832218,-242.75041323,0.0001642,2]
[351153816,1738363832227,-200.0,0.0001652,2]
[351153817,1738363832236,-204.78,0.00016644,2]
[351153818,1738363832246,-150.0,0.00016685,2]
[351153819,1738363832255,-250.0,0.00016779,2]
[351153820,1738363832264,-338.01,0.00016813,2]
[351153821,1738363832274,-376.47829983,0.00016835,2]
[351153822,1738363832337,-623.52170017,0.00016835,2]
[351153823,1738363832349,-500.0,0.00016922,2]
[351153824,1738363832359,-395.11435467,0.00016922,2]
[351153842,1738363837981,-242.75041321,0.00016679,2]
[351153843,1738363837991,-504.88564533,0.00016922,2]
[351153844,1738363838000,-64.26392646,0.0001693,2]
[351153845,1738363838020,-154.29607354,0.0001693,2]
[351153846,1738363838029,-182.15,0.00016962,2]
[351153847,1738363838038,-157.03,0.0001705,30]
[351153848,1738363838047,-200.0,0.00017109,2]
[351153849,1738363838056,-150.0,0.00017207,2]
[351153850,1738363838066,-500.0,0.00017274,2]
[351153851,1738363838075,-858.3,0.00017381,2]
[351153852,1738363838084,-204.78,0.00017476,2]
[351153853,1738363838094,-268.9128175,0.00017478,2]
[351154011,1738363839970,-32.5871825,0.00017478,2]
[351154013,1738363839980,-205.22579,0.00017545,2]
[351154015,1738363839990,-205.22579,0.00017552,2]
[351154017,1738363839999,-205.22579,0.00017574,2]
[351154019,1738363840009,-205.22579,0.00017584,2]
[351154021,1738363840018,-300.33886654,0.00017707,2]
[351154023,1738363840029,-95.63076365,0.00017707,2]
[351154025,1738363840038,-302.43251704,0.00017728,2]
[351154055,1738363840311,-512.6142,0.00017728,2]
[351154057,1738363840322,-783.54135735,0.00017728,2]
[351154060,1738363840333,-1535.697549,0.00017728,2]
[351154062,1738363840346,-364.96708586,0.00017728,2]
[351154166,1738363843047,-379.21,0.00016922,2]
[351154167,1738363843056,-16647.87729075,0.00017728,2]
[351154168,1738363843067,-150.99,0.00017728,2]
[351154169,1738363843077,-1929.74,0.000178,2]
[351154170,1738363843087,-3000.0,0.0001782,2]
[351154171,1738363843096,-203.60847261,0.000179,2]
[351154172,1738363843105,-1000.0,0.000179,2]
[351154173,1738363843116,-403.85041339,0.000179,2]
[351154174,1738363843126,-5000.0,0.000179,2]
[351154175,1738363843136,-505.50717843,0.000179,2]
[351154176,1738363843147,-500.0,0.00017973,2]
[351154177,1738363843157,-381.74,0.00017997,2]
[351154178,1738363843167,-403.8504133,0.00017998,2]
[351154179,1738363843176,-505.50717841,0.00017998,2]
[351154180,1738363843188,-475.00090807,0.00017999,2]
[351154181,1738363843198,-10000.0,0.00018,3]
[351154182,1738363843206,-368652.24650924,0.00018,2]
[351154183,1738363843309,-2108.2066507,0.00018,2]
[351154184,1738363843324,-1024.1,0.00018,2]
[351154185,1738363843336,-2500.0,0.00018,2]
[351154188,1738363846111,-1661.41815999,0.00018,2]
[351154189,1738363846256,-500.0,0.00018,2]
[351154206,1738363923460,3659.43202622,0.00021,120]
[351154220,1738365032096,-389.613202,0.00013,2]
[351154221,1738365032279,-160.386798,0.00013,2]
[351154222,1738365032288,-187.46,0.00013699,2]
[351154223,1738365032299,-150.0,0.0001395,2]
[351154224,1738365032308,-150.0,0.000143,2]
[351154225,1738365032318,-150.0,0.000143,2]
[351154226,1738365032328,-860.32,0.00014522,2]
[351154227,1738365032337,-500.0,0.00014959,2]
[351154228,1738365032347,-600.0,0.00015,2]
[351154229,1738365032356,-500.0,0.00016269,2]
[351154230,1738365032365,-200.0,0.00016326,2]
[351154231,1738365032375,-300.0,0.00016433,2]
[351154232,1738365032385,-940.5,0.00016466,2]
[351154233,1738365032395,-285.46,0.00016499,2]
[351154234,1738365032404,-200.0,0.00016648,2]
[351154235,1738365032414,-360.0,0.00016695,2]
[351154236,1738365032424,-1000.0,0.00016749,2]
[351154237,1738365032434,-860.32,0.00016786,2]
[351154238,1738365032444,-500.0,0.00016922,2]
[351154239,1738365032454,-900.0,0.00016922,2]
[351154240,1738365032464,-18824.16,0.00016928,2]
[351154241,1738365032474,-1096.0,0.00017,2]
[351154242,1738365032483,-250.0,0.00017005,2]
[351154243,1738365032493,-157.03,0.0001704,30]
[351154244,1738365032502,-182.15,0.00017073,2]
[351154245,1738365032512,-221.09,0.00017182,2]
[351154246,1738365032522,-194.41,0.00017252,2]
[351154247,1738365032532,-378.59,0.00017417,2]
[351154248,1738365032541,-360.0,0.0001753,2]
[351154249,1738365032551,-1891.14,0.000178,2]
[351154250,1738365032561,-2458.952,0.00017839,2]
[351154251,1738365032570,-167.497,0.00017839,2]
[351154252,1738365032580,-36491.534202,0.000179,2]
[351154256,1738365032667,-5535.76,0.000179,2]
[351154258,1738365032678,-3867.55864951,0.000179,2]
[351154260,1738365032689,-9660.14714849,0.000179,2]
[351154262,1738365032699,-2670.50663092,0.000179,2]
[351154266,1738365032733,-2329.49336908,0.000179,2]
[351154268,1738365032743,-196.82152332,0.000179,2]
[351154270,1738365032752,-174.08918416,0.000179,2]
[351154272,1738365032761,-404.4057428,0.000179,2]
[351154274,1738365032770,-787.97203962,0.000179,2]
[351154276,1738365032779,-302.89323896,0.00017989,2]
[351154278,1738365032790,-1294.49646426,0.0001799,2]
[351154281,1738365032804,-1285.47795316,0.0001799,2]
[351154285,1738365032831,-357.355385,0.0001799,2]
[351154357,1738365038210,-1158.3,0.0001799,2]
[351154358,1738365038288,-102295.0,0.0001799,2]
[351154359,1738365038300,-3155.78826614,0.0001799,2]
[351154360,1738365038340,-415.05990862,0.0001799,2]
[351154361,1738365038350,-404.40574272,0.00017998,2]
[351154362,1738365038359,-500.0,0.00017999,2]
[351154363,1738365038369,-668.9102057,0.00017999,2]
[351154364,1738365038379,-500.0,0.00017999,4]
[351154365,1738365038388,-785.80996841,0.00017999,2]
[351154366,1738365038397,-184.73036387,0.00018,2]
[351154367,1738365038406,-8852.71337903,0.00018,2]
[351154417,1738365040246,-8000.0,0.00018,2]
[351154418,1738365040259,-5292.5,0.00018,2]
[351154419,1738365040331,-2127.93396727,0.00018,2]
[351154420,1738365040400,-32978.00047059,0.00018,2]
[351154706,1738365043151,-22814.27655453,0.00018,2]
[351154709,1738365043162,-11909.0106192,0.00018,2]
[351154714,1738365043174,-2853.60850361,0.00018,2]
[351154716,1738365043185,-8159.128925,0.00018,2]
[351154718,1738365043196,-873.14999898,0.00018,2]
[351154721,1738365043216,-8222.08673663,0.00018,2]
[351154726,1738365043258,-619.2449657,0.00018,2]
[351154733,1738365043315,-1954.32044017,0.00018,2]
[351154736,1738365043326,-1169.0,0.00018,2]
[351154741,1738365043370,-2972.46284922,0.00018,2]
[351154942,1738365046156,-379.85,0.0001799,2]
[351154943,1738365046166,-427.471824,0.00018,2]
[351154944,1738365046179,-30425.9264,0.00018,2]
[351154945,1738365046190,-23142.22298,0.00018,2]
[351154946,1738365046200,-24971.91678,0.00018,2]
[351154947,1738365046219,-32359.8881281,0.00018,2]
[351154950,1738365838269,304.2,0.00010137,2]
[351154996,1738366232390,-187.46,0.00013699,2]
[351154998,1738366232399,-150.0,0.00013884,2]
[351154999,1738366232409,-814.34902,0.00014069,2]
[351155005,1738366232525,-49.52098,0.00014069,2]
[351155006,1738366232534,-150.0,0.00014942,2]
[351155007,1738366232543,-201.05641381,0.00014968,2]
[351155008,1738366232552,-3420.46406744,0.00015,2]
[351155009,1738366232563,-295.48257467,0.00015,2]
[351155010,1738366232572,-150.0,0.00015068,2]
[351155011,1738366232582,-404.51741533,0.00015965,2]
[351155012,1738366232594,-3.17258467,0.00015965,2]
[351155013,1738366232603,-217.29,0.00015976,2]
[351155014,1738366232612,-172.73,0.00016003,2]
[351155015,1738366232621,-863.87,0.00016333,2]
[351155016,1738366232630,-381.55,0.00016566,2]
[351155017,1738366232640,-370.46,0.00016566,2]
[351155018,1738366232649,-380.03,0.00016567,2]
[351155019,1738366232658,-376.43,0.00016567,2]
[351155020,1738366232672,-373.11,0.00016567,2]
[351155021,1738366232681,-11.35739033,0.00016568,2]
[351155022,1738366232692,-370.33260967,0.00016568,2]
[351155023,1738366232702,-378.28,0.00016569,2]
[351155024,1738366232711,-380.29,0.00016571,2]
[351155025,1738366232720,-300.0,0.00016573,2]
[351155026,1738366232729,-373.24,0.00016574,2]
[351155027,1738366232738,-370.03,0.00016578,2]
[351155028,1738366232748,-375.18,0.00016585,2]
[351155029,1738366232758,-369.66,0.00016595,2]
[351155030,1738366232767,-380.38,0.00016611,2]
[351155031,1738366232776,-174.84,0.00016662,2]
[351155032,1738366232785,-368.2,0.00016663,2]
[351155033,1738366232794,-369.41,0.00016663,2]
[351155034,1738366232804,-367.62,0.00016663,2]
[351155035,1738366232813,-380.92,0.00016663,2]
[351155036,1738366232823,-370.28,0.00016664,2]
[351155037,1738366232832,-368.84,0.00016665,2]
[351155038,1738366232841,-372.59,0.00016666,2]
[351155039,1738366232850,-373.44,0.00016668,2]
[351155040,1738366232859,-377.93,0.00016671,2]
[351155041,1738366232869,-377.2,0.00016675,2]
[351155042,1738366232879,-380.04,0.0001668,2]
[351155043,1738366232888,-373.62,0.00016689,2]
[351155044,1738366232897,-189.27,0.00016693,2]
[351155045,1738366232906,-369.49,0.00016699,2]
[351155046,1738366232918,-375.09,0.0001672,2]
[351155047,1738366232926,-376.79,0.00016759,2]
[351155048,1738366232935,-407.69,0.00016763,2]
[351155049,1738366232945,-304.2,0.00016813,2]
[351155050,1738366232954,-327.85739035,0.0001683,2]
[351155051,1738366232967,-51.18260965,0.0001683,2]
[351155052,1738366232976,-370.8,0.00016834,2]
[351155054,1738366232985,-376.28,0.0001684,2]
[351155056,1738366232994,-373.37,0.0001685,2]
[351155058,1738366233003,-28.36739065,0.00016864,2]
[351155061,1738366233014,-354.00260935,0.00016864,2]
[351155063,1738366233023,-114409.06066466,0.0001688,2]
[351155065,1738366233033,-376.02,0.00016887,2]
[351155067,1738366233042,-537.51,0.00016904,14]
[351155069,1738366233051,-382.36,0.00016921,2]
[351155071,1738366233060,-369.7,0.00016922,2]
[351155072,1738366233069,-370.87,0.00016922,2]
[351155073,1738366233078,-376.6,0.00016922,2]
[351155074,1738366233090,-368.04,0.00016922,2]
[351155075,1738366233099,-374.26,0.00016922,2]
[351155076,1738366233108,-377.34,0.00016922,2]
[351155077,1738366233117,-379.8,0.00016922,2]
[351155078,1738366233126,-376.91,0.00016922,2]
[351155079,1738366233136,-379.89,0.00016922,2]
[351155080,1738366233145,-380.71,0.00016922,2]
[351155081,1738366233154,-368.38,0.00016922,2]
[351155082,1738366233164,-369.62,0.00016922,2]
[351155083,1738366233173,-368.27,0.00016922,2]
[351155084,1738366233182,-900.0,0.00016922,2]
[351155086,1738366233191,-500.0,0.00016922,2]
[351155087,1738366233200,-1000.0,0.00016945,2]
[351155089,1738366233209,-157.03,0.00017198,30]
[351155091,1738366233219,-150.0,0.00017331,2]
[351155093,1738366233228,-407.69,0.00017561,2]
[351155095,1738366233237,-1392.8736472,0.0001764,2]
[351155097,1738366233246,-164.45981517,0.000178,2]
[351155099,1738366233256,-2008.788,0.00017814,2]
[351155101,1738366233265,-167.49889362,0.00017814,2]
[351155103,1738366233274,-500.0,0.00017855,2]
[351155105,1738366233283,-500.0,0.00017856,2]
[351155107,1738366233292,-20403.9339,0.0001789,2]
[351155109,1738366233301,-154.83661892,0.00017899,2]
[351155111,1738366233310,-13480.1214,0.00017899,2]
[351155112,1738366233319,-34999.3954,0.000179,2]
[351155114,1738366233328,-83238.73821795,0.000179,2]
[351155115,1738366233338,-5000.0,0.000179,2]
[351155117,1738366233347,-41352.7486,0.000179,2]
[351155119,1738366233356,-190.26080605,0.000179,2]
[351155121,1738366233365,-1737.15,0.000179,2]
[351155123,1738366233374,-501.59002624,0.00017973,2]
[351155125,1738366233382,-500.0,0.00017973,2]
[351155127,1738366233392,-267.4781129,0.0001799,2]
[351155129,1738366233402,-5050.0,0.0001799,2]
[351155131,1738366233411,-5050.0,0.0001799,15]
[351155133,1738366233421,-307.21607726,0.00017999,2]
[351155134,1738366233431,-1962.0,0.00017999,2]
[351155136,1738366233440,-500.0,0.00017999,2]
[351155138,1738366233449,-999.0,0.00017999,2]
[351155140,1738366233458,-500.0,0.00017999,4]
[351155142,1738366233467,-376.13,0.00017999,2]
[351155144,1738366233477,-583.44712834,0.00017999,2]
[351155146,1738366233486,-371.55,0.00018,2]
[351155148,1738366233495,-5228.16,0.00018,3]
[351155150,1738366233504,-10000.0,0.00018,3]
[351155152,1738366233513,-1096.32953953,0.00018,2]
[351155153,1738366233522,-72164.21390277,0.00018,2]
[351155156,1738366233534,-570.60925533,0.00018,2]
[351155159,1738366233555,-687.42937384,0.00018,2]
[351155162,1738366233573,-1484.86641381,0.00018,2]
[351155164,1738366233584,-125807.18975614,0.00018,2]
[351155166,1738366233599,-1601.46032278,0.00018,2]
[351155169,1738366233610,-305.38058186,0.00018,2]
[351155382,1738366238324,-439.32247579,0.00018,2]
[351155383,1738366238335,-988.20633372,0.00018,2]
[351155384,1738366238347,-1876.21666288,0.00018,2]
[351155385,1738366238375,-416.3300127,0.00018,2]
[351155386,1738366238419,-690.02331273,0.00018,2]
[351155387,1738366238430,-204093.84799998,0.00018,2]
[351155388,1738366238442,-235540.0,0.00018,2]
[351155389,1738366238462,-1353.73184843,0.00018,2]
[351155390,1738366238586,-352.10604785,0.00018,2]
[351155391,1738366238598,-984.96631323,0.00018,2]
[351155392,1738366238609,-1003.08832019,0.00018,2]
[351155398,1738366240419,-462.23374118,0.00018,2]
[351155399,1738366240431,-590.1216836,0.00018,2]
[351155400,1738366240442,-1484.925,0.00018,2]
[351155401,1738366240453,-1022.6,0.00018,2]
[351155402,1738366240684,-36411.39418752,0.00018,2]
[351155403,1738366240695,-819.65,0.00018,2]
[351155595,1738366246466,-301.51702746,0.00018,2]
[351155608,1738366812558,152.62,0.00010137,2]
[351155728,1738367431615,-187.46,0.00013699,2]
[351155730,1738367431625,-150.0,0.00013919,2]
[351155731,1738367431635,-15.39582442,0.00014582,2]
[351155732,1738367431827,-845.73417558,0.00014582,2]
[351155733,1738367431836,-150.0,0.00014595,2]
[351155734,1738367431846,-150.0,0.00015068,2]
[351155735,1738367431855,-186.99144944,0.00016205,2]
[351155736,1738367431864,-200.0,0.00016242,2]
[351155737,1738367431873,-1000.0,0.00016251,2]
[351155738,1738367431882,-300.0,0.00016305,2]
[351155739,1738367431891,-333.81,0.00016306,2]
[351155740,1738367431900,-16957.78699547,0.00016306,2]
[351155741,1738367431912,-6925.54300453,0.00016306,2]
[351155742,1738367431921,-150.0,0.00016329,2]
[351155743,1738367431930,-548.23,0.00016364,2]
[351155744,1738367431940,-250.0,0.00016385,2]
[351155745,1738367431949,-200.0,0.00016391,2]
[351155746,1738367431958,-370.27,0.00016415,2]
[351155747,1738367431968,-157.03,0.00016658,30]
[351155748,1738367431978,-373.03,0.00016685,2]
[351155749,1738367431987,-378.6,0.00016688,2]
[351155750,1738367431996,-378.58,0.00016692,2]
[351155751,1738367432006,-380.07,0.00016698,2]
[351155752,1738367432015,-376.85,0.00016707,2]
[351155753,1738367432024,-380.84,0.00016721,2]
[351155754,1738367432034,-301.0,0.0001674,2]
[351155755,1738367432043,-375.9,0.00016741,2]
[351155756,1738367432053,-377.73,0.00016779,2]
[351155757,1738367432062,-371.33,0.00016779,2]
[351155758,1738367432071,-376.56,0.0001678,2]
[351155759,1738367432081,-371.38,0.0001678,2]
[351155760,1738367432090,-379.95,0.0001678,2]
[351155761,1738367432099,-381.64,0.0001678,2]
[351155762,1738367432109,-382.47,0.0001678,2]
[351155763,1738367432118,-372.01,0.0001678,2]
[351155764,1738367432128,-376.51,0.0001678,2]
[351155765,1738367432138,-377.12,0.0001678,2]
[351155766,1738367432147,-375.28,0.0001678,2]
[351155767,1738367432157,-369.35,0.0001678,2]
[351155768,1738367432167,-371.02,0.0001678,2]
[351155769,1738367432176,-370.47,0.0001678,2]
[351155770,1738367432185,-377.37,0.0001678,2]
[351155771,1738367432194,-380.12,0.0001678,2]
[351155772,1738367432203,-381.25,0.0001678,2]
[351155773,1738367432212,-368.29,0.0001678,2]
[351155774,1738367432223,-861.13,0.00016845,2]
[351155775,1738367432232,-504.29,0.00016853,2]
[351155776,1738367432241,-172.33,0.00016911,2]
[351155777,1738367432250,-900.0,0.00016922,2]
[351155778,1738367432259,-500.0,0.00016922,2]
[351155779,1738367432268,-170.04,0.00017048,2]
[351155780,1738367432278,-333.81,0.00017121,2]
[351155781,1738367432287,-195.38,0.00017134,2]
[351155782,1738367432296,-14882.30355488,0.00017418,2]
[351155783,1738367432326,-776.74864779,0.00017418,2]
[351155784,1738367432337,-30844.2227015,0.00017418,2]
[351156258,1738367437574,-124.69735519,0.00017418,2]
[351156260,1738367437584,-774.29,0.00017465,2]
[351156262,1738367437593,-785.65,0.00017465,2]
[351156264,1738367437603,-150.0,0.00017589,2]
[351156266,1738367437612,-374.09,0.00017625,2]
[351156267,1738367437622,-696.4368236,0.0001764,2]
[351156268,1738367437631,-1000.0,0.000177,2]
[351156269,1738367437640,-1712.804,0.00017814,2]
[351156270,1738367437650,-167.826,0.00017814,2]
[351156271,1738367437659,-420.0,0.00017821,2]
[351156272,1738367437668,-500.0,0.00017856,2]
[351156273,1738367437677,-2021.0,0.00017866,2]
[351156274,1738367437686,-637.0,0.00017866,2]
[351156275,1738367437696,-568.0,0.00017866,2]
[351156277,1738367437705,-2952.0,0.00017866,2]
[351156279,1738367437714,-1260.0,0.00017866,2]
[351156281,1738367437724,-538.0,0.00017866,2]
[351156283,1738367437732,-1323.0,0.00017866,2]
[351156285,1738367437742,-150.0,0.00017866,2]
[351156287,1738367437751,-511.1197,0.00017894,2]
[351156288,1738367437759,-1296.8475,0.00017899,2]
[351156290,1738367437768,-1656.03,0.000179,2]